[Event "*** Titled Tuesday Blitz"]
[Site "Chess.com"]
[Date "2021.04.06"]
[Round "1"]
[White "gumimis"]
[Black "nochewycandy"]
[Result "0-1"]
[WhiteElo "2316"]
[BlackElo "2610"]
[TimeControl "180+1"]
[EndTime "10:05:18 PDT"]
[Termination "nochewycandy won by checkmate"]

1. e4 {[%clk 0:02:57.7]} 1... g6 {[%clk 0:02:54.5]} 2. d4 {[%clk 0:02:56.8]}
2... Bg7 {[%clk 0:02:55.4]} 3. Nc3 {[%clk 0:02:57]} 3... d6 {[%clk 0:02:56.1]}
4. f4 {[%clk 0:02:55.1]} 4... a6 {[%clk 0:02:56.3]} 5. Nf3 {[%clk 0:02:55.5]}
5... b5 {[%clk 0:02:56.3]} 6. Bd3 {[%clk 0:02:49]} 6... Nd7 {[%clk 0:02:54.5]}
7. O-O {[%clk 0:02:44.5]} 7... c5 {[%clk 0:02:53.8]} 8. Be3 {[%clk 0:02:41.8]}
8... Bb7 {[%clk 0:02:44.8]} 9. d5 {[%clk 0:02:18.4]} 9... Ngf6 {[%clk 0:02:36]}
10. a4 {[%clk 0:02:16.3]} 10... c4 {[%clk 0:02:35.8]} 11. Be2 {[%clk 0:02:15]}
11... b4 {[%clk 0:02:36.5]} 12. Na2 {[%clk 0:02:13]} 12... a5 {[%clk 0:02:29.1]}
13. Bxc4 {[%clk 0:01:54.8]} 13... Nxe4 {[%clk 0:02:28.6]} 14. Qd3 {[%clk
0:01:46.3]} 14... Ndc5 {[%clk 0:02:27.1]} 15. Bb5+ {[%clk 0:01:45.4]} 15... Kf8
{[%clk 0:02:27.1]} 16. Bxc5 {[%clk 0:01:39.4]} 16... Nxc5 {[%clk 0:02:28]} 17.
Qe3 {[%clk 0:01:39.2]} 17... Bxb2 {[%clk 0:02:26]} 18. Rad1 {[%clk 0:01:37.2]}
18... Bf6 {[%clk 0:02:25.4]} 19. Nc1 {[%clk 0:01:30.7]} 19... Qb6 {[%clk
0:02:22.5]} 20. Kh1 {[%clk 0:01:28.7]} 20... Nxa4 {[%clk 0:02:16.7]} 21. Qxb6
{[%clk 0:01:21.3]} 21... Nxb6 {[%clk 0:02:17.6]} 22. Nb3 {[%clk 0:01:18]} 22...
Bxd5 {[%clk 0:02:15.9]} 23. Ra1 {[%clk 0:01:15.6]} 23... Bxa1 {[%clk 0:02:14.9]}
24. Rxa1 {[%clk 0:01:14]} 24... Bxf3 {[%clk 0:02:13]} 25. gxf3 {[%clk
0:01:11.6]} 25... a4 {[%clk 0:02:13.4]} 26. Nd4 {[%clk 0:01:10.5]} 26... a3
{[%clk 0:02:07.4]} 27. Nc6 {[%clk 0:01:07.6]} 27... Nd5 {[%clk 0:02:05.5]} 28.
Bc4 {[%clk 0:01:05.1]} 28... Nxf4 {[%clk 0:02:00.9]} 29. Nxb4 {[%clk 0:01:04.2]}
29... Kg7 {[%clk 0:01:58.4]} 30. c3 {[%clk 0:01:02.9]} 30... Rhc8 {[%clk
0:01:57.2]} 31. Bd5 {[%clk 0:00:58.9]} 31... Nxd5 {[%clk 0:01:53.1]} 32. Nxd5
{[%clk 0:00:59.8]} 32... Ra7 {[%clk 0:01:53.8]} 33. Kg2 {[%clk 0:00:44.2]} 33...
a2 {[%clk 0:01:53]} 34. Nb4 {[%clk 0:00:45.1]} 34... Rxc3 {[%clk 0:01:50.7]} 35.
Nxa2 {[%clk 0:00:42.4]} 35... Rc2+ {[%clk 0:01:50.6]} 36. Kg3 {[%clk 0:00:41.8]}
36... Raxa2 {[%clk 0:01:51.5]} 37. Re1 {[%clk 0:00:42.2]} 37... e5 {[%clk
0:01:50.3]} 38. f4 {[%clk 0:00:41.5]} 38... Rc3+ {[%clk 0:01:49.3]} 39. Kg4
{[%clk 0:00:41.2]} 39... f5+ {[%clk 0:01:49.4]} 40. Kg5 {[%clk 0:00:42.1]} 40...
h6+ {[%clk 0:01:44.3]} 41. Kh4 {[%clk 0:00:40.7]} 41... Rxh2# {[%clk 0:01:45]}
0-1

[Event "*** Titled Tuesday Blitz"]
[Site "Chess.com"]
[Date "2021.04.06"]
[Round "1"]
[White "BrandonJacobson"]
[Black "CM_rui"]
[Result "1-0"]
[WhiteElo "2882"]
[BlackElo "2452"]
[TimeControl "180+1"]
[EndTime "10:05:22 PDT"]
[Termination "BrandonJacobson won by resignation"]

1. d4 {[%clk 0:03:00.9]} 1... Nf6 {[%clk 0:02:58.8]} 2. c4 {[%clk 0:03:00.8]}
2... e6 {[%clk 0:02:59.7]} 3. Nf3 {[%clk 0:03:00.6]} 3... Bb4+ {[%clk
0:03:00.3]} 4. Nbd2 {[%clk 0:02:47.7]} 4... O-O {[%clk 0:02:59.5]} 5. a3 {[%clk
0:02:47.6]} 5... Be7 {[%clk 0:02:58.5]} 6. e4 {[%clk 0:02:46.3]} 6... d6 {[%clk
0:02:58.1]} 7. Be2 {[%clk 0:02:45.6]} 7... Nbd7 {[%clk 0:02:55.4]} 8. Qc2 {[%clk
0:02:41.2]} 8... a5 {[%clk 0:02:53.2]} 9. Nb1 {[%clk 0:02:31.6]} 9... e5 {[%clk
0:02:51.8]} 10. Nc3 {[%clk 0:02:27.9]} 10... exd4 {[%clk 0:02:46.4]} 11. Nxd4
{[%clk 0:02:28.8]} 11... Nc5 {[%clk 0:02:46.8]} 12. b3 {[%clk 0:02:24.2]} 12...
Re8 {[%clk 0:02:39.8]} 13. O-O {[%clk 0:02:11.3]} 13... Bf8 {[%clk 0:02:38.4]}
14. f3 {[%clk 0:02:10.5]} 14... g6 {[%clk 0:02:32.1]} 15. Be3 {[%clk 0:02:04]}
15... Bg7 {[%clk 0:02:29.1]} 16. Rad1 {[%clk 0:02:03.6]} 16... Bd7 {[%clk
0:02:19.9]} 17. Rfe1 {[%clk 0:01:59.3]} 17... h6 {[%clk 0:02:09.9]} 18. Bf1
{[%clk 0:01:56.4]} 18... Kh7 {[%clk 0:02:08.5]} 19. Nd5 {[%clk 0:01:47.1]} 19...
Nfxe4 {[%clk 0:01:40.5]} 20. fxe4 {[%clk 0:01:45.1]} 20... Rxe4 {[%clk
0:01:41.4]} 21. Bf2 {[%clk 0:01:37.5]} 21... f5 {[%clk 0:01:33.4]} 22. Nc3
{[%clk 0:01:25.9]} 22... Rf4 {[%clk 0:01:22.4]} 23. Be3 {[%clk 0:01:20.7]} 23...
Re4 {[%clk 0:01:21]} 24. Nxe4 {[%clk 0:01:20.2]} 24... Nxe4 {[%clk 0:01:20.5]}
25. Nb5 {[%clk 0:01:09.9]} 25... Bc6 {[%clk 0:01:14.7]} 26. Bd4 {[%clk 0:01:06]}
26... Qg5 {[%clk 0:01:08]} 27. Bxg7 {[%clk 0:01:02.7]} 27... Kxg7 {[%clk
0:00:59.9]} 28. Nxc7 {[%clk 0:01:02.8]} 28... Qxg2+ {[%clk 0:00:45.1]} 29. Bxg2
{[%clk 0:01:01.2]} 1-0

[Event "*** Titled Tuesday Blitz"]
[Site "Chess.com"]
[Date "2021.04.06"]
[Round "1"]
[White "yandry1996"]
[Black "bratkoo"]
[Result "0-1"]
[WhiteElo "2233"]
[BlackElo "2553"]
[TimeControl "180+1"]
[EndTime "10:05:22 PDT"]
[Termination "bratkoo won by resignation"]

1. e4 {[%clk 0:03:00.9]} 1... e6 {[%clk 0:02:51.9]} 2. d4 {[%clk 0:02:59.5]}
2... d5 {[%clk 0:02:50.1]} 3. Nc3 {[%clk 0:02:59.1]} 3... Nf6 {[%clk 0:02:49.7]}
4. e5 {[%clk 0:02:56.8]} 4... Nfd7 {[%clk 0:02:49.2]} 5. Nce2 {[%clk 0:02:57]}
5... c5 {[%clk 0:02:50.1]} 6. c3 {[%clk 0:02:57.3]} 6... Nc6 {[%clk 0:02:50.7]}
7. Nf3 {[%clk 0:02:56.4]} 7... f6 {[%clk 0:02:51]} 8. Nf4 {[%clk 0:02:55.8]}
8... Qe7 {[%clk 0:02:48.4]} 9. Bb5 {[%clk 0:02:45.7]} 9... cxd4 {[%clk 0:02:40]}
10. Bxc6 {[%clk 0:02:37.6]} 10... bxc6 {[%clk 0:02:35.5]} 11. exf6 {[%clk
0:02:30.6]} 11... Qxf6 {[%clk 0:02:30.7]} 12. cxd4 {[%clk 0:02:27.2]} 12... Bb4+
{[%clk 0:02:29.6]} 13. Kf1 {[%clk 0:02:26.7]} 13... O-O {[%clk 0:02:25.9]} 14.
Nd3 {[%clk 0:02:20.5]} 14... Bd6 {[%clk 0:02:24]} 15. Nde1 {[%clk 0:01:31.4]}
15... e5 {[%clk 0:02:19.8]} 16. dxe5 {[%clk 0:01:24.7]} 16... Nxe5 {[%clk
0:02:18.9]} 17. Be3 {[%clk 0:01:14.3]} 17... Bg4 {[%clk 0:02:12.3]} 18. Qd4
{[%clk 0:00:42.6]} 18... Bxf3 {[%clk 0:02:07]} 19. Nxf3 {[%clk 0:00:38.5]} 19...
Nxf3 {[%clk 0:02:07.1]} 20. Qxf6 {[%clk 0:00:39]} 20... Rxf6 {[%clk 0:02:07.6]}
21. gxf3 {[%clk 0:00:39]} 21... Rxf3 {[%clk 0:02:08.2]} 22. Ke2 {[%clk
0:00:37.9]} 22... Rf6 {[%clk 0:02:07]} 23. h4 {[%clk 0:00:34.7]} 23... Re8
{[%clk 0:02:07]} 24. Kd3 {[%clk 0:00:34.2]} 24... c5 {[%clk 0:02:04.9]} 25. Raf1
{[%clk 0:00:31.4]} 25... d4 {[%clk 0:02:04.9]} 26. Bg5 {[%clk 0:00:31.3]} 26...
Rf3+ {[%clk 0:02:02.8]} 27. Kd2 {[%clk 0:00:30.4]} 27... c4 {[%clk 0:02:00.8]}
28. Rhg1 {[%clk 0:00:28.5]} 28... Rb8 {[%clk 0:01:57.9]} 29. Kc1 {[%clk
0:00:21.7]} 29... c3 {[%clk 0:01:53.2]} 30. bxc3 {[%clk 0:00:15.3]} 30... Rxc3+
{[%clk 0:01:50.9]} 31. Kd2 {[%clk 0:00:12.5]} 31... Rb2+ {[%clk 0:01:49.2]} 32.
Kd1 {[%clk 0:00:12.9]} 32... Rd3+ {[%clk 0:01:48.4]} 33. Ke1 {[%clk 0:00:11.6]}
33... Bb4+ {[%clk 0:01:48.4]} 0-1

[Event "*** Titled Tuesday Blitz"]
[Site "Chess.com"]
[Date "2021.04.06"]
[Round "1"]
[White "juancruzarias"]
[Black "maximych26"]
[Result "1-0"]
[WhiteElo "2559"]
[BlackElo "2238"]
[TimeControl "180+1"]
[EndTime "10:05:29 PDT"]
[Termination "juancruzarias won by resignation"]

1. d4 {[%clk 0:03:00.4]} 1... Nf6 {[%clk 0:02:59]} 2. Nf3 {[%clk 0:03:00.1]}
2... c5 {[%clk 0:02:58.2]} 3. e3 {[%clk 0:03:00.2]} 3... e6 {[%clk 0:02:57.7]}
4. Bd3 {[%clk 0:02:59.2]} 4... b6 {[%clk 0:02:57.8]} 5. O-O {[%clk 0:02:59.4]}
5... Bb7 {[%clk 0:02:57.9]} 6. c4 {[%clk 0:02:59]} 6... Be7 {[%clk 0:02:57.9]}
7. Nc3 {[%clk 0:02:59.1]} 7... O-O {[%clk 0:02:57.9]} 8. d5 {[%clk 0:02:59.1]}
8... d6 {[%clk 0:02:46.9]} 9. e4 {[%clk 0:02:56.7]} 9... e5 {[%clk 0:02:47]} 10.
Rb1 {[%clk 0:02:56.3]} 10... Nfd7 {[%clk 0:02:46.6]} 11. a3 {[%clk 0:02:53.2]}
11... a5 {[%clk 0:02:45.5]} 12. Bc2 {[%clk 0:02:49.4]} 12... g6 {[%clk
0:02:44.5]} 13. Bh6 {[%clk 0:02:47.4]} 13... Re8 {[%clk 0:02:43.7]} 14. Ba4
{[%clk 0:02:45.7]} 14... Bf8 {[%clk 0:02:42.4]} 15. Be3 {[%clk 0:02:44.3]} 15...
f5 {[%clk 0:02:33.2]} 16. exf5 {[%clk 0:02:43.7]} 16... gxf5 {[%clk 0:02:33.2]}
17. Ng5 {[%clk 0:02:38.9]} 17... f4 {[%clk 0:02:24.5]} 18. Ne6 {[%clk
0:02:33.7]} 18... Qf6 {[%clk 0:02:21.8]} 19. Qg4+ {[%clk 0:02:26.9]} 19... Kh8
{[%clk 0:02:20.3]} 20. Ne4 {[%clk 0:02:24.2]} 20... Qg6 {[%clk 0:02:18.2]} 21.
Qxg6 {[%clk 0:02:18.4]} 21... hxg6 {[%clk 0:02:17.9]} 22. Bd2 {[%clk 0:02:05.5]}
22... Rc8 {[%clk 0:02:10.8]} 23. Nxf8 {[%clk 0:02:01.4]} 23... Rxf8 {[%clk
0:02:08.5]} 24. Nxd6 {[%clk 0:02:01.3]} 24... Ba6 {[%clk 0:02:08.4]} 25. Bc3
{[%clk 0:01:57.9]} 25... Kh7 {[%clk 0:02:03.7]} 26. Rfe1 {[%clk 0:01:55.8]}
26... Rf5 {[%clk 0:02:03.7]} 27. Nxf5 {[%clk 0:01:46.5]} 27... gxf5 {[%clk
0:02:03.9]} 28. Bxe5 {[%clk 0:01:46.6]} 28... Bxc4 {[%clk 0:02:04.1]} 29. Bxb8
{[%clk 0:01:45.2]} 29... Nxb8 {[%clk 0:02:03.1]} 30. Re7+ {[%clk 0:01:45.7]}
30... Kg6 {[%clk 0:02:02.7]} 31. Re8 {[%clk 0:01:42.9]} 31... b5 {[%clk
0:02:02.2]} 32. b3 {[%clk 0:01:36.6]} 32... Bd3 {[%clk 0:01:53.6]} 33. Rd1
{[%clk 0:01:35.6]} 33... Bc2 {[%clk 0:01:53.6]} 34. Rd2 {[%clk 0:01:33.5]} 34...
bxa4 {[%clk 0:01:53.8]} 35. Rxc2 {[%clk 0:01:32.3]} 35... axb3 {[%clk 0:01:54]}
36. Rxc5 {[%clk 0:01:29.9]} 36... Na6 {[%clk 0:01:51.4]} 37. Rc6+ {[%clk
0:01:27]} 37... Kg5 {[%clk 0:01:50.3]} 38. Rxa8 {[%clk 0:01:20.1]} 38... b2
{[%clk 0:01:50.5]} 39. Rb6 {[%clk 0:01:18.2]} 39... Nb4 {[%clk 0:01:50.6]} 40.
Rg8+ {[%clk 0:01:10.8]} 40... Kh5 {[%clk 0:01:49.5]} 41. h4 {[%clk 0:01:04.3]}
41... b1=Q+ {[%clk 0:01:47.1]} 42. Kh2 {[%clk 0:01:04.3]} 42... Nxd5 {[%clk
0:01:38.3]} 43. Rxb1 {[%clk 0:01:00.9]} 43... f3 {[%clk 0:01:37]} 44. Rb7 {[%clk
0:00:57.5]} 1-0

[Event "*** Titled Tuesday Blitz"]
[Site "Chess.com"]
[Date "2021.04.06"]
[Round "1"]
[White "ChronicUnhappiness"]
[Black "Love_craft"]
[Result "0-1"]
[WhiteElo "2311"]
[BlackElo "2609"]
[TimeControl "180+1"]
[EndTime "10:05:32 PDT"]
[Termination "Love_craft won by resignation"]

1. c4 {[%clk 0:03:00.9]} 1... e5 {[%clk 0:02:59.7]} 2. g3 {[%clk 0:02:59]} 2...
d6 {[%clk 0:02:57.3]} 3. Bg2 {[%clk 0:02:58.5]} 3... g6 {[%clk 0:02:57.7]} 4.
Nc3 {[%clk 0:02:57.9]} 4... Bg7 {[%clk 0:02:58]} 5. e4 {[%clk 0:02:50.6]} 5...
Nc6 {[%clk 0:02:57]} 6. Nge2 {[%clk 0:02:50.7]} 6... h5 {[%clk 0:02:57.4]} 7. h3
{[%clk 0:02:49.8]} 7... f5 {[%clk 0:02:51.3]} 8. d3 {[%clk 0:02:48.8]} 8... Nf6
{[%clk 0:02:51.2]} 9. Bg5 {[%clk 0:02:45.6]} 9... O-O {[%clk 0:02:46.9]} 10. O-O
{[%clk 0:02:37.2]} 10... Be6 {[%clk 0:02:36.1]} 11. Qd2 {[%clk 0:02:29.1]} 11...
Qd7 {[%clk 0:02:35.5]} 12. Kh2 {[%clk 0:02:14.6]} 12... Nh7 {[%clk 0:02:20.9]}
13. Nd5 {[%clk 0:02:07.2]} 13... Nxg5 {[%clk 0:02:09.9]} 14. Qxg5 {[%clk
0:02:06.1]} 14... Kh7 {[%clk 0:02:10]} 15. f4 {[%clk 0:01:42.4]} 15... Bxd5
{[%clk 0:01:55]} 16. exd5 {[%clk 0:01:41.6]} 16... Bf6 {[%clk 0:01:51.8]} 17.
dxc6 {[%clk 0:01:40.5]} 17... bxc6 {[%clk 0:01:52.7]} 18. Qxf6 {[%clk
0:01:32.6]} 18... Rxf6 {[%clk 0:01:51.2]} 19. d4 {[%clk 0:01:15.7]} 19... exf4
{[%clk 0:01:31.7]} 20. Nxf4 {[%clk 0:01:14.2]} 20... g5 {[%clk 0:01:26.1]} 21.
Nd3 {[%clk 0:00:44.9]} 21... Re8 {[%clk 0:01:23]} 22. Rae1 {[%clk 0:00:39.3]}
22... Rxe1 {[%clk 0:01:21.6]} 23. Rxe1 {[%clk 0:00:38.8]} 23... Re6 {[%clk
0:01:20.8]} 24. Rxe6 {[%clk 0:00:19.1]} 24... Qxe6 {[%clk 0:01:21.7]} 25. Bf3
{[%clk 0:00:19.3]} 25... Qe3 {[%clk 0:01:17.7]} 0-1

[Event "*** Titled Tuesday Blitz"]
[Site "Chess.com"]
[Date "2021.04.06"]
[Round "1"]
[White "shnitez"]
[Black "FairChess_on_YouTube"]
[Result "0-1"]
[WhiteElo "2475"]
[BlackElo "3003"]
[TimeControl "180+1"]
[EndTime "10:05:34 PDT"]
[Termination "FairChess_on_YouTube won by resignation"]

1. c4 {[%clk 0:02:59.1]} 1... e5 {[%clk 0:02:58.3]} 2. Nc3 {[%clk 0:02:59.1]}
2... Nc6 {[%clk 0:02:57.7]} 3. Nf3 {[%clk 0:02:58.8]} 3... g6 {[%clk 0:02:57.4]}
4. e3 {[%clk 0:02:54.7]} 4... Bg7 {[%clk 0:02:55.4]} 5. d4 {[%clk 0:02:54.8]}
5... d6 {[%clk 0:02:55.9]} 6. g3 {[%clk 0:02:46.3]} 6... f5 {[%clk 0:02:49.6]}
7. dxe5 {[%clk 0:02:38.8]} 7... dxe5 {[%clk 0:02:45.4]} 8. Qxd8+ {[%clk
0:02:38.1]} 8... Kxd8 {[%clk 0:02:40.8]} 9. Bd2 {[%clk 0:02:28.5]} 9... e4
{[%clk 0:02:37.8]} 10. Ng5 {[%clk 0:02:25.5]} 10... Ne5 {[%clk 0:02:35.4]} 11.
O-O-O {[%clk 0:02:09.4]} 11... Bd7 {[%clk 0:02:28.5]} 12. h4 {[%clk 0:01:55.6]}
12... Nf6 {[%clk 0:02:25.2]} 13. Be2 {[%clk 0:01:52]} 13... Kc8 {[%clk
0:02:13.4]} 14. Nd5 {[%clk 0:01:38.4]} 14... h6 {[%clk 0:01:55.6]} 15. Nxf6
{[%clk 0:01:33]} 15... Bxf6 {[%clk 0:01:54.1]} 16. Nh3 {[%clk 0:01:32.8]} 16...
g5 {[%clk 0:01:42]} 17. hxg5 {[%clk 0:01:23.7]} 17... hxg5 {[%clk 0:01:42.9]}
18. Bc3 {[%clk 0:01:18.3]} 18... Re8 {[%clk 0:01:39.8]} 19. Kc2 {[%clk
0:00:46.8]} 19... a5 {[%clk 0:01:32]} 20. Rd5 {[%clk 0:00:42.4]} 20... Bc6
{[%clk 0:01:22.6]} 21. Rxa5 {[%clk 0:00:40.7]} 21... Rxa5 {[%clk 0:01:22.6]} 22.
Bxa5 {[%clk 0:00:41.6]} 22... Nd3 {[%clk 0:01:15.9]} 23. Rb1 {[%clk 0:00:24.4]}
23... Rh8 {[%clk 0:01:12.6]} 24. Bc3 {[%clk 0:00:21.4]} 24... Bxc3 {[%clk
0:01:10.5]} 0-1

[Event "*** Titled Tuesday Blitz"]
[Site "Chess.com"]
[Date "2021.04.06"]
[Round "1"]
[White "DinaBelenkaya"]
[Black "Aygehovit1992"]
[Result "0-1"]
[WhiteElo "2343"]
[BlackElo "2649"]
[TimeControl "180+1"]
[EndTime "10:05:35 PDT"]
[Termination "Aygehovit1992 won by resignation"]

1. e4 {[%clk 0:02:54.6]} 1... d6 {[%clk 0:02:58.9]} 2. d4 {[%clk 0:02:53.2]}
2... g6 {[%clk 0:02:59.5]} 3. Nc3 {[%clk 0:02:50.1]} 3... a6 {[%clk 0:02:59.9]}
4. f4 {[%clk 0:02:48.7]} 4... Bg7 {[%clk 0:02:58.9]} 5. Nf3 {[%clk 0:02:47]}
5... b5 {[%clk 0:02:58.8]} 6. a3 {[%clk 0:02:45.5]} 6... Nd7 {[%clk 0:02:57.4]}
7. Be3 {[%clk 0:02:38.5]} 7... Bb7 {[%clk 0:02:53.8]} 8. d5 {[%clk 0:02:29.7]}
8... Ngf6 {[%clk 0:02:51.7]} 9. Nd4 {[%clk 0:02:27.9]} 9... Nc5 {[%clk
0:02:49.4]} 10. Qf3 {[%clk 0:02:22.2]} 10... O-O {[%clk 0:02:46.5]} 11. O-O-O
{[%clk 0:02:10]} 11... e6 {[%clk 0:02:46.3]} 12. Nc6 {[%clk 0:02:08.3]} 12...
Bxc6 {[%clk 0:02:45.6]} 13. dxc6 {[%clk 0:02:08.1]} 13... Qb8 {[%clk 0:02:45.5]}
14. e5 {[%clk 0:02:07.2]} 14... Ne8 {[%clk 0:02:35.8]} 15. Bxc5 {[%clk
0:02:07.7]} 15... dxc5 {[%clk 0:02:35.4]} 16. Rd7 {[%clk 0:02:08.6]} 16... Qb6
{[%clk 0:02:23.7]} 17. Be2 {[%clk 0:02:02.7]} 17... b4 {[%clk 0:02:21.3]} 18.
Na4 {[%clk 0:01:59.6]} 18... Qa5 {[%clk 0:02:20.5]} 19. b3 {[%clk 0:01:59.5]}
19... bxa3 {[%clk 0:02:18.7]} 20. Bc4 {[%clk 0:01:54.6]} 20... Nd6 {[%clk
0:02:11]} 21. Qc3 {[%clk 0:01:21.4]} 21... Qxc3 {[%clk 0:01:46.5]} 22. Nxc3
{[%clk 0:01:21.1]} 22... Nxc4 {[%clk 0:01:47.1]} 23. bxc4 {[%clk 0:01:22]} 23...
f6 {[%clk 0:01:47.4]} 24. Re1 {[%clk 0:01:01.4]} 24... fxe5 {[%clk 0:01:45.6]}
25. fxe5 {[%clk 0:01:02.3]} 25... Rab8 {[%clk 0:01:38.1]} 26. Rxc7 {[%clk
0:01:00.1]} 26... Bh6+ {[%clk 0:01:38.2]} 27. Kd1 {[%clk 0:00:58]} 27... Rf2
{[%clk 0:01:34.9]} 28. Rb7 {[%clk 0:00:51.1]} 28... Rd8+ {[%clk 0:01:17.5]} 29.
Nd5 {[%clk 0:00:43.7]} 29... a2 {[%clk 0:01:11]} 0-1

[Event "*** Titled Tuesday Blitz"]
[Site "Chess.com"]
[Date "2021.04.06"]
[Round "1"]
[White "SilviusTiberius"]
[Black "paulrusan"]
[Result "1-0"]
[WhiteElo "2594"]
[BlackElo "2281"]
[TimeControl "180+1"]
[EndTime "10:05:35 PDT"]
[Termination "SilviusTiberius won by checkmate"]

1. e4 {[%clk 0:03:00.9]} 1... c5 {[%clk 0:02:59.2]} 2. Nf3 {[%clk 0:02:51.2]}
2... Nc6 {[%clk 0:02:58.3]} 3. d4 {[%clk 0:02:51.5]} 3... cxd4 {[%clk
0:02:58.6]} 4. Nxd4 {[%clk 0:02:52]} 4... e5 {[%clk 0:02:59.2]} 5. Nb5 {[%clk
0:02:51.5]} 5... d6 {[%clk 0:02:59.6]} 6. c4 {[%clk 0:02:50.8]} 6... Be7 {[%clk
0:02:58.5]} 7. N1c3 {[%clk 0:02:50.3]} 7... a6 {[%clk 0:02:58.8]} 8. Na3 {[%clk
0:02:50.5]} 8... f5 {[%clk 0:02:59.4]} 9. exf5 {[%clk 0:02:48.7]} 9... Bxf5
{[%clk 0:02:58.8]} 10. Bd3 {[%clk 0:02:49.2]} 10... Be6 {[%clk 0:02:59.1]} 11.
O-O {[%clk 0:02:47.7]} 11... Nf6 {[%clk 0:02:58.9]} 12. Nc2 {[%clk 0:02:47.7]}
12... O-O {[%clk 0:02:58.6]} 13. Bg5 {[%clk 0:02:46.8]} 13... Kh8 {[%clk
0:02:50.1]} 14. Ne3 {[%clk 0:02:46.3]} 14... Nd4 {[%clk 0:02:49.1]} 15. Bxf6
{[%clk 0:02:35.5]} 15... gxf6 {[%clk 0:02:48.6]} 16. f4 {[%clk 0:02:28.1]} 16...
f5 {[%clk 0:02:44.7]} 17. Ncd5 {[%clk 0:02:23.7]} 17... Rc8 {[%clk 0:02:25.1]}
18. Rc1 {[%clk 0:02:14.6]} 18... Bf6 {[%clk 0:02:07.3]} 19. Qh5 {[%clk
0:01:58.1]} 19... Bg7 {[%clk 0:02:05.4]} 20. fxe5 {[%clk 0:01:51.6]} 20... dxe5
{[%clk 0:02:05.3]} 21. Nxf5 {[%clk 0:01:50.6]} 21... Nxf5 {[%clk 0:02:05.2]} 22.
Bxf5 {[%clk 0:01:50.2]} 22... Bxf5 {[%clk 0:02:02.9]} 23. Rxf5 {[%clk
0:01:48.5]} 23... Qd6 {[%clk 0:01:44.5]} 24. b3 {[%clk 0:01:29.5]} 24... b5
{[%clk 0:01:43.8]} 25. Rd1 {[%clk 0:01:04.4]} 25... bxc4 {[%clk 0:01:42.3]} 26.
bxc4 {[%clk 0:01:00.8]} 26... Rxc4 {[%clk 0:01:39.4]} 27. Rxf8+ {[%clk
0:00:46.5]} 27... Qxf8 {[%clk 0:01:38.3]} 28. Ne3 {[%clk 0:00:42.9]} 28... Rd4
{[%clk 0:01:36.6]} 29. Rf1 {[%clk 0:00:42]} 29... Qc5 {[%clk 0:01:33.7]} 30.
Qe8+ {[%clk 0:00:40.6]} 30... Bf8 {[%clk 0:01:08.3]} 31. Rxf8+ {[%clk
0:00:38.6]} 31... Kg7 {[%clk 0:01:08.5]} 32. Nf5# {[%clk 0:00:38.5]} 1-0

[Event "*** Titled Tuesday Blitz"]
[Site "Chess.com"]
[Date "2021.04.06"]
[Round "1"]
[White "joejan"]
[Black "Orest_Vovk"]
[Result "0-1"]
[WhiteElo "2267"]
[BlackElo "2577"]
[TimeControl "180+1"]
[EndTime "10:05:36 PDT"]
[Termination "Orest_Vovk won by resignation"]

1. e4 {[%clk 0:02:59.5]} 1... Nc6 {[%clk 0:02:59.2]} 2. Nc3 {[%clk 0:02:59.2]}
2... Nf6 {[%clk 0:02:56.2]} 3. d4 {[%clk 0:02:57.7]} 3... e5 {[%clk 0:02:56.1]}
4. d5 {[%clk 0:02:56.6]} 4... Ne7 {[%clk 0:02:55.9]} 5. Bg5 {[%clk 0:02:54.4]}
5... Ng6 {[%clk 0:02:55.6]} 6. Nf3 {[%clk 0:02:51.6]} 6... Bc5 {[%clk
0:02:54.4]} 7. h4 {[%clk 0:02:44]} 7... h6 {[%clk 0:02:46.1]} 8. Bxf6 {[%clk
0:02:36.1]} 8... Qxf6 {[%clk 0:02:47]} 9. h5 {[%clk 0:02:36.3]} 9... Nf8 {[%clk
0:02:35.5]} 10. Qd3 {[%clk 0:02:33.7]} 10... d6 {[%clk 0:02:30.2]} 11. Na4
{[%clk 0:02:32.7]} 11... Nd7 {[%clk 0:02:24.4]} 12. Be2 {[%clk 0:02:17.8]} 12...
a6 {[%clk 0:02:16.1]} 13. O-O-O {[%clk 0:02:16.1]} 13... Ba7 {[%clk 0:02:14.1]}
14. g4 {[%clk 0:02:10.4]} 14... Bxf2 {[%clk 0:02:07.4]} 15. Rdf1 {[%clk
0:02:08.6]} 15... Qf4+ {[%clk 0:02:07.3]} 16. Kb1 {[%clk 0:02:07]} 16... Qe3
{[%clk 0:02:05.2]} 17. Rh2 {[%clk 0:01:43.2]} 17... Qxd3 {[%clk 0:02:03.3]} 18.
Bxd3 {[%clk 0:01:44.1]} 18... Ba7 {[%clk 0:02:02.1]} 19. g5 {[%clk 0:01:43]}
19... Nc5 {[%clk 0:01:52.7]} 20. gxh6 {[%clk 0:01:40.7]} 20... gxh6 {[%clk
0:01:49.5]} 21. Nxc5 {[%clk 0:01:39.4]} 21... Bxc5 {[%clk 0:01:50.4]} 22. Nh4
{[%clk 0:01:37.7]} 22... Rg8 {[%clk 0:01:44.3]} 23. a3 {[%clk 0:01:34.8]} 23...
Rg5 {[%clk 0:01:38.5]} 24. Nf3 {[%clk 0:01:31.3]} 24... Rg4 {[%clk 0:01:33.6]}
25. Nd2 {[%clk 0:01:27]} 25... Rf4 {[%clk 0:01:24.7]} 26. Rxf4 {[%clk
0:01:20.8]} 26... exf4 {[%clk 0:01:25.6]} 27. Rg2 {[%clk 0:01:20.7]} 27... Kf8
{[%clk 0:01:20.3]} 28. Nf3 {[%clk 0:01:20.6]} 28... Bh3 {[%clk 0:01:12.8]} 29.
Rh2 {[%clk 0:01:14.5]} 29... Bg4 {[%clk 0:01:12.6]} 30. Be2 {[%clk 0:01:12.8]}
30... Re8 {[%clk 0:01:08.1]} 31. Nd2 {[%clk 0:01:12.3]} 31... Bxe2 {[%clk
0:00:58.5]} 32. Rxe2 {[%clk 0:01:12.8]} 32... Be3 {[%clk 0:00:58.7]} 33. Nc4
{[%clk 0:00:56.5]} 33... Rxe4 {[%clk 0:00:56.8]} 0-1